Workbook

Sheet на 21.11.2018
A1: Порівняння показників доходів бюджету м.Білгорода-Дністровського 2017р., очікуване 2018р. та прогноз на 2019р.
A3: Код бюджетної класифікації | B3: Назва податку | C3: 2017 (факт) | D3: 2018 план | E3: очікув.факт 2018 | F3: Вик. Плану,% 2018 | G3: темп росту очік. 2018/2017 | H3: 2019 (прогноз) | I3: темп росту 2019/ очік. 2018 | J3: відхилення 2019/ очік. 2018, тис.грн. | K3: 2018 | L3: темп росту 2018/2017 | M3: 2019 | N3: темп росту 2019/2018
A4: Загальний фонд
A5: 10000000 | B5: Податкові надходження | C5: =C6+C11+C15+C36 -> 192,741.7 | D5: =D6+D11+D15+D36 -> 226,851.0 | E5: =E6+E11+E15+E36 -> 215,143.4 | F5: =E5/D5*100 -> 94.8 | G5: =E5/C5*100 -> 111.6 | H5: =H6+H11+H15+H36 -> 245,115.0 | I5: =H5/E5*100 -> 113.9 | J5: =H5-E5 -> 29,971.6 | K5: =K6+K11+K15+#REF! ->  | L5: =K5/H5*100 ->  | M5: =M6+M11+M15+#REF! ->  | N5: =M5/K5*100 -> 
A6: 11000000 | B6: Податки на доходи, податки на прибуток, податки на збільшення ринкової вартості | C6: =C7+C8 -> 120,587.5 | D6: =D7+D8 -> 140,200.0 | E6: =E7+E8 -> 138,200.4 | F6: =E6/D6*100 -> 98.6 | G6: =E6/C6*100 -> 114.6 | H6: =H7+H8 -> 163,200.0 | I6: =H6/E6*100 -> 118.1 | J6: 24,999.6 | K6: =K7+K8 -> 229,560.0 | L6: =K6/H6*100 -> 140.7 | M6: =M7+M8 -> 241,491.9 | N6: =M6/K6*100 -> 105.2
A7: 11010000 | B7: Податок на доходи фізичних осіб | C7: 120,075.7 | D7: 140,000.0 | E7: 138,000.0 | F7: =E7/D7*100 -> 98.6 | G7: =E7/C7*100 -> 114.9 | H7: 163,000.0 | I7: =H7/E7*100 -> 118.1 | J7: 25,000.0 | K7: 229,460.0 | L7: =K7/H7*100 -> 140.8 | M7: 241,391.9 | N7: =M7/K7*100 -> 105.2
A8: 11020000 | B8: Податок на прибуток підприємств | C8: =SUM(C9:C10) -> 511.8 | D8: =SUM(D9:D10) -> 200.0 | E8: =SUM(E9:E10) -> 200.4 | F8: 0.0 | G8: 0.0 | H8: =SUM(H9:H10) -> 200.0 | I8: =H8/E8*100 -> 99.8 | J8: -0.4 | K8: =SUM(K9:K10) -> 100.0 | L8: =K8/H8*100 -> 50.0 | M8: =SUM(M9:M10) -> 100.0 | N8: =M8/K8*100 -> 100.0
A9: 11020200 | B9: Податок на прибуток підприємств комунальної власності | C9: 511.8 | D9: 200.0 | E9: 200.4 | F9: 0.0 | G9: 0.0 | H9: 200.0 | I9: 0.0 | J9: -0.4 | K9: 100.0 | L9: =K9/H9*100 -> 50.0 | M9: 100.0 | N9: =M9/K9*100 -> 100.0
A10: 11023200 | B10: Авансові внески з податку на прибуток | C10: 0.0 | D10: 0.0 | E10: 0.0 | F10: 0.0 | G10: =E10/C10*100 ->  | H10: 0.0 | I10: 0.0 | J10: 0.0 | K10: 0.0 | L10: 0.0 | N10: 0.0
A11: 14000000 | B11: Внутрішні податки на товари та послуги | C11: =C12+C13+C14 -> 12,380.7 | D11: =D12+D13+D14 -> 15,400.0 | E11: =E12+E13+E14 -> 12,350.0 | F11: =E11/D11*100 -> 80.2 | G11: 99.8 | H11: =H12+H13+H14 -> 12,700.0 | I11: =H11/E11*100 -> 102.8 | J11: 350.0 | K11: 25,000.0 | L11: =K11/H11*100 -> 196.9 | M11: 25,500.0 | N11: =M11/K11*100 -> 102.0
A12: 14021900 | B12: Акцизний податок з вироблених в Україні підакцизних товарів (пальне) | C12: 1,146.5 | D12: 1,500.0 | E12: 1,150.0 | F12: 76.7 | G12: 100.3 | H12: 1,200.0 | I12: 104.3 | J12: 50.0
A13: 14031900 | B13: Акцизний податок з ввезених на митну територію України підакцизних товарів (пальне) | C13: 4,423.9 | D13: 5,800.0 | E13: 4,500.0 | F13: 77.6 | G13: 101.7 | H13: 4,600.0 | I13: 102.2 | J13: 100.0
A14: 14040000 | B14: Акцизний податок з реалізації суб’єктами господарювання роздрібної торгівлі підакцизних товарів | C14: 6,810.3 | D14: 8,100.0 | E14: 6,700.0 | F14: 82.7 | G14: 98.4 | H14: 6,900.0 | I14: 103.0 | J14: 200.0
A15: 18000000 | B15: Місцеві податки та збори | C15: =C16+C32+C33+C31 -> 59,521.0 | D15: =D16+D32+D33+D31 -> 71,251.0 | E15: =E16+E32+E33+E31 -> 64,593.0 | F15: 90.7 | G15: 108.5 | H15: =H16+H32+H33+H31 -> 69,215.0 | I15: 107.2 | J15: 4,622.0 | K15: =K16+K32+K33 -> 179,126.3 | L15: =K15/H15*100 -> 258.8 | M15: =M16+M32+M33 -> 188,486.7 | N15: =M15/K15*100 -> 105.2
A16: 18010000 | B16: Податок на майно | C16: =C17+C22+C27 -> 28,045.2 | D16: =D17+D22+D27 -> 34,082.0 | E16: =E17+E22+E27 -> 29,608.2 | F16: 86.9 | G16: 105.6 | H16: =H17+H22+H27 -> 31,765.0 | I16: 107.3 | J16: 2,156.8 | K16: =K17+K22+K27 -> 150,338.3 | L16: 473.3 | M16: =M17+M22+M27 -> 158,691.7 | N16: 105.6
A17: 18010100-18010400 | B17: Податок на нерухоме майно, відмінне від земельної ділянки | C17: =SUM(C18:C21) -> 5,003.0 | D17: =SUM(D18:D21) -> 6,242.0 | E17: =SUM(E18:E21) -> 7,617.6 | F17: 122.0 | G17: 152.3 | H17: =SUM(H18:H21) -> 8,640.0 | I17: 113.4 | J17: 1,022.4 | K17: =SUM(K18:K21) -> 5,131.3 | L17: 59.4 | M17: =SUM(M18:M21) -> 5,541.7 | N17: 108.0
A18: 18010100 | B18: Податок на нерухоме майно, відмінне від земельної ділянки, сплачений юридичними особами, які є власниками об`єктів житлової нерухомості | C18: 15.3 | D18: 32.0 | E18: 57.6 | F18: 180.0 | G18: 376.5 | H18: 64.6 | I18: 112.2 | J18: 7.0 | K18: 22.5 | L18: 34.8 | M18: 24.2 | N18: 107.6
A19: 18010200 | B19: Податок на нерухоме майно, відмінне від земельної ділянки, сплачений фізичними особами, які є власниками об`єктів житлової нерухомості | C19: 129.5 | D19: 210.0 | E19: 450.0 | F19: 214.3 | G19: 347.5 | H19: 525.8 | I19: 116.8 | J19: 75.8 | K19: 302.2 | L19: 57.5 | M19: 332.7 | N19: 110.1
A20: 18010300 | B20: Податок на нерухоме майно, відмінне від земельної ділянки, сплачений фізичними особами, які є власниками об`єктів нежитлової нерухомості | C20: 737.7 | D20: 1,070.0 | E20: 1,910.0 | F20: 0.0 | G20: 0.0 | H20: 2,220.3 | I20: 116.2 | J20: 310.3 | K20: 683.4 | L20: 30.8 | M20: 752.4 | N20: 110.1
A21: 18010400 | B21: Податок на нерухоме майно, відмінне від земельної ділянки, сплачений юридичними особами, які є власниками об`єктів нежитлової нерухомості | C21: 4,120.5 | D21: 4,930.0 | E21: 5,200.0 | F21: =E21/D21*100 -> 105.5 | G21: 0.0 | H21: 5,829.3 | I21: 112.1 | J21: 629.3 | K21: 4,123.2 | L21: 70.7 | M21: 4,432.4 | N21: 107.5
A22: 18010500-18010900 | B22: Плата за землю | C22: =SUM(C23:C26) -> 22,895.6 | D22: =SUM(D23:D26) -> 27,715.0 | E22: =SUM(E23:E26) -> 21,850.0 | F22: 78.8 | G22: =E22/C22*100 -> 95.4 | H22: =SUM(H23:H26) -> 23,000.0 | I22: 105.3 | J22: 1,150.0 | K22: =SUM(K23:K26) -> 144,657.0 | L22: 628.9 | M22: =SUM(M23:M26) -> 152,600.0 | N22: 105.5
A23: 18010500 | B23: Земельний податок з юридичних осіб | C23: 8,278.3 | D23: 9,500.0 | E23: 7,200.0 | F23: 75.8 | G23: 87.0 | H23: 7,560.0 | I23: 105.0 | J23: 360.0 | K23: =55220+500 -> 55,720.0 | L23: 737.0 | M23: =57980+1000 -> 58,980.0 | N23: 105.9
A24: 18010600 | B24: Орендна плата з юридичних осіб | C24: 10,460.6 | D24: 13,150.0 | E24: 10,300.0 | F24: 78.3 | G24: 98.5 | H24: 10,820.0 | I24: 105.0 | J24: 520.0 | K24: =78600+861 -> 79,461.0 | L24: 734.4 | M24: =82530+1140 -> 83,670.0 | N24: 105.3
A25: 18010700 | B25: Земельний податок з фізичних осіб | C25: 330.0 | D25: 1,706.3 | E25: 1,750.0 | F25: 102.6 | G25: 530.3 | H25: 520.0 | I25: 29.7 | J25: -1,230.0 | K25: 901.0 | L25: 173.3 | M25: 946.0 | N25: 105.0
A26: 18010900 | B26: Орендна плата з фізичних осіб | C26: 3,826.7 | D26: 3,358.7 | E26: 2,600.0 | F26: 77.4 | G26: 67.9 | H26: 4,100.0 | I26: 157.7 | J26: 1,500.0 | K26: 8,575.0 | L26: 209.1 | M26: 9,004.0 | N26: 105.0
A27: 18011000-18011100 | B27: Транспортний податок | C27: =SUM(C28:C29) -> 146.6 | D27: =SUM(D28:D29) -> 125.0 | E27: =SUM(E28:E29) -> 140.6 | F27: 112.5 | G27: 95.9 | H27: =SUM(H28:H29) -> 125.0 | I27: 88.9 | J27: -15.6 | K27: =SUM(K28:K29) -> 550.0 | L27: 440.0 | M27: =SUM(M28:M29) -> 550.0 | N27: 100.0
A28: 18011000 | B28: Транспортний податок з фізичних осіб | C28: 97.9 | D28: 81.0 | E28: 89.5 | F28: 110.5 | G28: 91.4 | H28: 100.0 | I28: 111.7 | J28: 10.5 | K28: 250.0 | L28: 250.0 | M28: 250.0 | N28: 100.0
A29: 18011100 | B29: Транспортний податок з юридичних осіб | C29: 48.7 | D29: 44.0 | E29: 51.1 | F29: 116.1 | G29: 104.9 | H29: 25.0 | I29: 0.0 | J29: -26.1 | K29: 300.0 | L29: 1,200.0 | M29: 300.0 | N29: 100.0
A30: 18040000 | B30: Збір за провадження деяких видів підприємницької діяльності, який діяв до 01.01.2015р. | C30: -128.0 | G30: 0.0 | H30: 0.0 | J30: 0.0
A31: 18020000 | B31: Збір за місця для паркування транспортних засобів | C31: 400.3 | D31: 490.0 | E31: 420.0 | F31: 85.7 | G31: 104.9 | H31: 450.0 | I31: =H31/E31*100 -> 107.1 | J31: 30.0
A32: 18030000 | B32: Туристичний збір | C32: 22.4 | D32: 23.0 | E32: 64.8 | F32: 281.7 | G32: 289.3 | H32: 30.0 | I32: =H32/E32*100 -> 46.3 | J32: -34.8 | K32: 88.0 | L32: =K32/H32*100 -> 293.3 | M32: 95.0 | N32: =M32/K32*100 -> 108.0
A33: 18050000 | B33: Єдиний податок | C33: =C34+C35 -> 31,053.1 | D33: =D34+D35 -> 36,656.0 | E33: =E34+E35 -> 34,500.0 | F33: 94.1 | G33: 111.1 | H33: =H34+H35 -> 36,970.0 | I33: =H33/E33*100 -> 107.2 | J33: 2,470.0 | K33: 28,700.0 | L33: =K33/H33*100 -> 77.6 | M33: 29,700.0 | N33: =M33/K33*100 -> 103.5
A34: 18050300 | B34: Єдиний податок з юридичних осіб | C34: 5,914.9 | D34: 7,500.0 | E34: 6,100.0 | F34: 81.3 | G34: 103.1 | H34: 6,500.0 | I34: =H34/E34*100 -> 106.6 | J34: 400.0
A35: 18050400 | B35: Єдиний податок з фізичних осіб | C35: 25,138.2 | D35: 29,156.0 | E35: 28,400.0 | F35: 97.4 | G35: 113.0 | H35: 30,470.0 | I35: =H35/E35*100 -> 107.3 | J35: 2,070.0
A36: 19090000 | B36: Податки та збори не віднесені до інших категорій | C36: 252.5 | F36: 0.0 | I36: 0.0 | J36: 0.0
A37: 20000000 | B37: Неподаткові надходження | C37: =C38+C45+C53 -> 6,819.2 | D37: =D38+D45+D53 -> 6,225.0 | E37: =E38+E45+E53 -> 6,285.3 | F37: =E37/D37*100 -> 101.0 | G37: =E37/C37*100 -> 92.2 | H37: =H38+H45+H53 -> 8,235.0 | I37: =H37/E37*100 -> 131.0 | J37: 1,949.7 | K37: =K38+K45+K53 -> 5,827.0 | L37: =K37/H37*100 -> 70.8 | M37: =M38+M45+M53 -> 5,958.0 | N37: =M37/K37*100 -> 102.2
A38: 21000000 | B38: Доходи від власності та підприємницької діяльності | C38: =C39+C42+C41 -> 1,017.9 | D38: =D39+D42 -> 115.0 | E38: =E39+E42 -> 356.8 | F38: =E38/D38*100 -> 310.3 | G38: =E38/C38*100 -> 35.1 | H38: =H39+H42 -> 555.0 | I38: =H38/E38*100 -> 155.5 | J38: 198.2 | K38: =K39+K42 -> 93.0 | L38: =K38/H38*100 -> 16.8 | M38: =M39+M42 -> 99.0 | N38: =M38/K38*100 -> 106.5
A39: 21010000 | B39: Частина чистого прибутку (доходу) державних або комунальних унітарних підприємств та їх об'єднань, що вилучається до відповідного бюджету, та дивіденди (дохід), нараховані на акції (частки, паї) господарських товариств, у статутних капіталах яких є держав | C39: =C40 -> 131.1 | D39: =D40 -> 15.0 | E39: =E40 -> 16.8 | F39: =E39/D39*100 -> 112.0 | G39: =E39/C39*100 -> 12.8 | H39: =H40 -> 100.0 | I39: =H39/E39*100 -> 595.2 | J39: 83.2 | K39: =K40 -> 70.0 | L39: =K39/H39*100 -> 70.0 | M39: =M40 -> 75.0 | N39: =M39/K39*100 -> 107.1
A40: 21010300 | B40: Частина чистого прибутку (доходу) комунальних унітарних підприємств та їх об'єднань, що вилучається до відповідного місцевого бюджету | C40: 131.1 | D40: 15.0 | E40: 16.8 | F40: =E40/D40*100 -> 112.0 | G40: =E40/C40*100 -> 12.8 | H40: 100.0 | I40: =H40/E40*100 -> 595.2 | J40: 83.2 | K40: 70.0 | L40: =K40/H40*100 -> 70.0 | M40: 75.0 | N40: =M40/K40*100 -> 107.1
A41: 21050000 | B41: Плата за розміщення тимчасово вільних коштів | C41: 778.6
A42: 21080000 | B42: Інші надходження | C42: =C43 -> 108.2 | D42: =D43 -> 100.0 | E42: =E43+E44 -> 340.0 | F42: =E42/D42*100 -> 340.0 | G42: =E42/C42*100 -> 314.2 | H42: =H43+H44 -> 455.0 | I42: =H42/E42*100 -> 133.8 | J42: =H42-E42 -> 115.0 | K42: =K43 -> 23.0 | L42: =K42/H42*100 -> 5.1 | M42: =M43 -> 24.0 | N42: =M42/K42*100 -> 104.3
A43: 21081100 | B43: Адміністративні штрафи та інші санкції | C43: 108.2 | D43: 100.0 | E43: 160.0 | F43: =E43/D43*100 -> 160.0 | G43: =E43/C43*100 -> 147.9 | H43: 275.0 | I43: =H43/E43*100 -> 171.9 | J43: 115.0 | K43: 23.0 | L43: =K43/H43*100 -> 8.4 | M43: 24.0 | N43: =M43/K43*100 -> 104.3
A44: 21081500 | B44: Адміністративні штрафи та штрафні санкції за порушення законодавства у сфері виробництва та обігу алкогольних напоїв та тютюнових виробів | E44: 180.0 | H44: 180.0 | I44: =H44/E44*100 -> 100.0 | J44: 0.0
A45: 22000000 | B45: Адміністративні збори та платежі, доходи від некомерційної господарської діяльності | C45: =C46+C51+C52 -> 5,368.0 | D45: =D46+D51+D52 -> 5,910.0 | E45: =E46+E51+E52 -> 5,908.5 | F45: =E45/D45*100 -> 100.0 | G45: =E45/C45*100 -> 110.1 | H45: =H46+H51+H52 -> 7,610.0 | I45: =I46+I51+I52 -> 344.7 | J45: 1,701.5 | K45: =K46+K51+K52 -> 5,234.0 | L45: =L46+L51+L52 -> 332.6 | M45: =M46+M51+M52 -> 5,359.0 | N45: =N46+N51+N52 -> 307.4
A46: 22010000 | B46: Плата за надання адміністративних послуг | C46: =C48+C49+C50+C47 -> 3,939.7 | D46: =D47+D48+D49+D50 -> 4,660.0 | E46: =E48+E49+E50+E47 -> 4,608.5 | F46: =E46/D46*100 -> 98.9 | G46: =E46/C46*100 -> 117.0 | H46: =H48+H49+H50+H47 -> 6,310.0 | I46: =I48 -> 144.7 | J46: 1,701.5 | K46: =K48+K49+K50+K47 -> 2,353.0 | L46: =L48 -> 37.3 | M46: =M48+M49+M50+M47 -> 2,427.0 | N46: =N48 -> 102.4
A47: 22010300 | B47: Адміністративний збір за проведення державної реєстрації юридичних осіб, фізхичних осіб-підприємців та громадських формувань | C47: 126.4 | D47: 100.0 | E47: 100.0 | F47: 0.0 | G47: 0.0 | H47: 100.0 | I47: =H47/E47*100 -> 100.0 | J47: 0.0 | K47: 57.0 | L47: =K47/H47*100 -> 57.0 | M47: 60.0 | N47: =M47/K47*100 -> 105.3
A48: 22012500 | B48: Плата за надання інших адміністративних послуг | C48: 2,927.8 | D48: 3,800.0 | E48: 3,800.0 | F48: =E48/D48*100 -> 100.0 | G48: =E48/C48*100 -> 129.8 | H48: 5,500.0 | I48: 144.7 | J48: 1,700.0 | K48: 2,050.0 | L48: 37.3 | M48: 2,100.0 | N48: 102.4
A49: 22012600 | B49: Адміністративний збір за державну реєстрацію речових прав на нерухоме майно та їх обтяжень. | C49: 870.9 | D49: 750.0 | E49: 700.0 | F49: 0.0 | G49: 0.0 | H49: 700.0 | I49: 100.0 | J49: 0.0 | K49: 240.0 | L49: 34.3 | M49: 260.0 | N49: 108.3
A50: 22012900 | B50: Плата за скорочення термінів надання послуг у сфері державної реєстрації речових прав на нерухоме майно та їх обтяжень і державної реєстрації юридичних осіб, фізичних осіб-підприємців та громадських формувань, а також плата за надання інших платних послуг, пов'язаних з такою державною реєстрацією. | C50: 14.6 | D50: 10.0 | E50: 8.5 | F50: 0.0 | G50: 0.0 | H50: 10.0 | I50: 117.6 | J50: 1.5 | K50: 6.0 | L50: 60.0 | M50: 7.0 | N50: 116.7
A51: 22080000 | B51: Надходження від орендної плати за користування цілісним майновим комплексом та іншим державним майном | C51: 1,006.3 | D51: 900.0 | E51: 1,000.0 | F51: =E51/D51*100 -> 111.1 | G51: =E51/C51*100 -> 99.4 | H51: 1,000.0 | I51: 100.0 | J51: 0.0 | K51: 2,850.0 | L51: 285.0 | M51: 2,900.0 | N51: 101.8
A52: 22090000 | B52: Державне мито | C52: 422.0 | D52: 350.0 | E52: 300.0 | F52: 85.7 | G52: 71.1 | H52: 300.0 | I52: 100.0 | J52: 0.0 | K52: 31.0 | L52: 10.3 | M52: 32.0 | N52: 103.2
A53: 24000000 | B53: Інші неподаткові надходження | C53: =C54 -> 433.3 | D53: 200.0 | E53: 20.0 | F53: 10.0 | G53: 4.6 | H53: =H54 -> 70.0 | I53: 350.0 | J53: 50.0 | K53: =K54 -> 500.0 | L53: 714.3 | M53: =M54 -> 500.0 | N53: 100.0
A54: 24060000 | B54: Інші надходження | C54: 433.3 | D54: 200.0 | E54: 20.0 | F54: 10.0 | G54: 4.6 | H54: =H55 -> 70.0 | I54: 350.0 | J54: 50.0 | K54: =K55 -> 500.0 | L54: 714.3 | M54: =M55 -> 500.0 | N54: 100.0
A55: 24060300 | B55: Інші надходження | C55: 433.3 | D55: 200.0 | E55: 20.0 | F55: 10.0 | G55: 4.6 | H55: 70.0 | I55: 350.0 | J55: 50.0 | K55: 500.0 | L55: 714.3 | M55: 500.0 | N55: 100.0
A56: 30000000 | B56: Доходи від операцій з капіталом | C56: =C57 -> 1.0 | D56: 0.0 | E56: 0.0 | F56: 0.0 | G56: 0.0 | H56: =H57 -> 0.0 | I56: 0.0 | J56: 0.0 | K56: =K57 -> 16.0 | M56: =M57 -> 17.0 | N56: 106.3
A57: 31000000 | B57: Надходження від продажу основного капіталу | C57: 1.0 | D57: 0.0 | E57: 0.0 | G57: =G58 -> 0.0 | H57: =H58 -> 0.0 | J57: 0.0 | K57: =K58 -> 16.0 | M57: =M58 -> 17.0 | N57: 106.3
A58: 31010200 | B58: Кошти від реалізації безхазяйного майна, знахідок, спадкового майна, майна, одержаного територіальною громадою в порядку спадкування чи дарування, а також валютні цінності і грошові кошти, власники яких невідомі | C58: 1.0 | G58: =E58/C58*100 -> 0.0 | J58: 0.0 | K58: 16.0 | M58: 17.0 | N58: 106.3
B59: ЗАГАЛЬНИЙ ФОНД (разом без субвенцій) | C59: =C5+C37+C56 -> 199,561.9 | D59: =D5+D37+D56 -> 233,076.0 | E59: =E5+E37+E56 -> 221,428.7 | F59: =E59/D59*100 -> 95.0 | G59: =E59/C59*100 -> 111.0 | H59: =H5+H37+H56 -> 253,350.0 | I59: =H59/E59*100 -> 114.4 | J59: 31,921.3 | K59: =K5+K37+K56 ->  | M59: =M5+M37+M56 -> 
B60: Освітня субвенція | C60: 0.0 | D60: 62,183.3 | E60: 60,184.0 | F60: =E60/D60*100 -> 96.8 | H60: 62,183.3 | I60: =H60/E60*100 -> 103.3 | J60: 1,999.3
B61: Загальний фонд (з освітньою субвенцією) | D61: =D59+D60 -> 295,259.3 | E61: =E59+E60 -> 281,612.7 | F61: =E61/D61*100 -> 95.4 | H61: =H59+H60 -> 315,533.3 | I61: =H61/E61*100 -> 112.0 | J61: 33,920.6
B62: патенти | C62: -128.0 | E62: -23.1 | J62: 23.1
B63: 130202,130204,240606 | C63: 0.4 | E63: 0.4
C64: =C59+C63-128 -> 199,434.3 | E64: =E59-(-E62) -> 221,405.6
A65: Спеціальний фонд
A66: 10000000 | B66: Податкові надходження | C66: =C67 -> 155.4 | D66: =D67 -> 130.0 | E66: =E67 -> 130.0 | F66: =E66/D66*100 -> 100.0 | G66: =E66/C66*100 -> 83.7 | H66: =H67 -> 130.0 | I66: =H66/E66*100 -> 100.0 | J66: =H66-E66 -> 0.0 | K66: =K67 -> 225.0 | L66: =K66/H66*100 -> 173.1 | M66: =M67 -> 230.0 | N66: =M66/K66*100 -> 102.2
A67: 19010000 | B67: Екологічний податок | C67: 155.4 | D67: 130.0 | E67: 130.0 | F67: 100.0 | G67: 83.7 | H67: 130.0 | I67: 100.0 | J67: 0.0 | K67: 225.0 | L67: 173.1 | M67: 230.0 | N67: 102.2
A68: 20000000 | B68: Неподаткові надходження | C68: =C69+C73 -> 9,905.5 | D68: =D69+D73 -> 12,145.1 | E68: =E69+E73 -> 11,805.1 | F68: 97.2 | G68: 119.2 | H68: =H69+H73 -> 11,742.231 | I68: 99.5 | J68: -62.9 | K68: =K69+K73 ->  | M68: =M69+M73 -> 
A69: 24000000 | B69: Інші неподаткові надходження | C69: =C70+C72 -> 1,145.3 | D69: =D70+D72 -> 2,086.0 | E69: =E70+E72 -> 1,746.0 | F69: 83.7 | G69: 152.4 | H69: =H70+H72 -> 730.0 | I69: 41.8 | J69: -1,016.0 | K69: =K70+K72 -> 2,355.0 | L69: 322.6 | M69: =M70+M72 -> 2,355.0 | N69: 100.0
A70: 24060000 | B70: Інші надходження | C70: =C71 -> 1,111.7 | D70: =D71 -> 1,000.0 | E70: =E71 -> 700.0 | F70: 70.0 | G70: 63.0 | H70: =H71 -> 700.0 | I70: 100.0 | J70: 0.0 | K70: =K71 -> 355.0 | L70: 50.7 | M70: =M71 -> 355.0 | N70: 100.0
A71: 24062100 | B71: Грошові стягнення за шкоду, заподіяну порушенням законодавства про охорону навколишнього природного середовища внаслідок господарської та іншої діяльності | C71: 1,111.7 | D71: 1,000.0 | E71: 700.0 | F71: 70.0 | G71: 63.0 | H71: 700.0 | I71: 100.0 | J71: 0.0 | K71: 355.0 | L71: 50.7 | M71: 355.0 | N71: 100.0
A72: 24170000 | B72: Надходження коштів пайової участі у розвитку інфраструктури населеного пункту | C72: 33.6 | D72: 1,086.0 | E72: 1,046.0 | F72: 96.3 | G72: 3,113.1 | H72: 30.0 | I72: 2.9 | J72: -1,016.0 | K72: 2,000.0 | L72: 6,666.7 | M72: 2,000.0 | N72: 100.0
A73: 25000000 | B73: Власні надходження бюджетних установ | C73: =C74 -> 8,760.2 | D73: 10,059.1 | E73: 10,059.1 | F73: 100.0 | G73: 114.8 | H73: 11,012.231 | I73: 109.5 | J73: 953.1 | K73: =K74+#REF! ->  | M73: =M74+#REF! -> 
A74: 25010000 | B74: Надходження від плати за послуги, що надаються бюджетними установами згідно із законодавством | C74: 8,760.2 | D74: 10,059.1 | E74: 10,059.1 | F74: =E74/D74*100 -> 100.0 | G74: =E74/C74*100 -> 114.8 | H74: 11,012.231 | I74: =H74/E74*100 -> 109.5 | J74: =H74-E74 -> 953.1 | K74: 15,200.0 | L74: 138.0 | M74: 15,300.0 | N74: 100.7
A75: 30000000 | B75: Доходи від операцій з капіталом | C75: =C76+C78 -> 1,960.3 | D75: =D76+D78 -> 4,290.2 | E75: =E76+E78 -> 1,134.2 | F75: 26.4 | G75: =E75/C75*100 -> 57.9 | H75: =H76+H78 -> 0.0 | I75: =H75/E75*100 -> 0.0 | J75: =H75-E75 -> -1,134.2 | K75: =K76+K78 -> 0.0 | L75: =L76+L78 -> 0.0 | M75: =M76+M78 -> 0.0 | N75: =N76+N78 -> 0.0
A76: 31000000 | B76: Надходження від продажу основного капіталу | C76: =C77 -> 0.0 | D76: =D77 -> 50.0 | E76: =E77 -> 0.0 | F76: 0.0 | G76: =E76/C76*100 ->  | H76: =H77 -> 0.0 | I76: =H76/E76*100 ->  | K76: =K77 -> 0.0 | L76: =L77 -> 0.0 | M76: =M77 -> 0.0 | N76: =N77 -> 0.0
A77: 31030000 | B77: Кошти від відчуження майна, що належить Автономній Республіці Крим та майна, що перебуває в комунальній власності | D77: 50.0 | F77: 0.0 | J77: =H77-E77 -> 0.0 | K77: 0.0 | L77: 0.0 | M77: 0.0 | N77: 0.0
A78: 33000000 | B78: Кошти від продажу землі і нематеріальних активів | C78: =C79 -> 1,960.3 | D78: =D79 -> 4,240.2 | E78: =E79 -> 1,134.2 | F78: 26.7 | G78: =E78/C78*100 -> 57.9 | H78: =H79 -> 0.0 | I78: =H78/E78*100 -> 0.0 | J78: -1,134.2 | K78: =K79 -> 0.0 | L78: =L79 -> 0.0 | M78: =M79 -> 0.0 | N78: =N79 -> 0.0
A79: 33010100 | B79: Кошти від продажу земельних ділянок несільськогосподарського призначення, що перебувають у державній або комунальній власності, та земельних ділянок, які знаходяться на території Автономної Республіки Крим | C79: 1,960.3 | D79: 4,240.2 | E79: 1,134.2 | F79: 26.7 | G79: =E79/C79*100 -> 57.9 | I79: =H79/E79*100 -> 0.0 | J79: -1,134.2 | K79: 0.0 | L79: 0.0 | M79: 0.0 | N79: 0.0
A80: 50000000 | B80: Цільові фонди | C80: =C81 -> 0.0 | D80: =D81 -> 0.0 | E80: =E81 -> 4.0 | G80: =E80/C80*100 ->  | H80: =H81 -> 0.0 | I80: =H80/E80*100 -> 0.0 | J80: -4.0 | K80: =K81 -> 5.0 | L80: =K80/H80*100 ->  | M80: =M81 -> 5.0 | N80: =M80/K80*100 -> 100.0
A81: 50110000 | B81: Цільові фонди, утворені Верховною Радою Автономної Республіки Крим, органами місцевого самоврядування та місцевими органами виконавчої влади | E81: 4.0 | H81: 0.0 | I81: 0.0 | J81: -4.0 | K81: 5.0 | L81: =K81/H81*100 ->  | M81: 5.0 | N81: =M81/K81*100 -> 100.0
B82: СПЕЦІАЛЬНИЙ ФОНД (разом) | C82: =C68+C75+C80+C66 -> 12,021.2 | D82: =D68+D75+D80+D66 -> 16,565.3 | E82: =E66+E68+E75+E81 -> 13,073.3 | F82: =E82/D82*100 -> 78.9 | G82: =E82/C82*100 -> 108.8 | H82: =H68+H75+H80+H66 -> 11,872.2 | I82: =H82/E82*100 -> 90.8 | J82: -1,201.1 | K82: =K68+K75+K80+K66 ->  | L82: =K82/H82*100 ->  | M82: =M68+M75+M80+M66 ->  | N82: =M82/K82*100 -> 
B83: БЮДЖЕТ (всього без субвенцій) | C83: =C59+C82 -> 211,583.1 | D83: =D59+D82 -> 249,641.3 | E83: =E59+E82 -> 234,502.0 | F83: 93.9 | G83: =E83/C83*100 -> 110.8 | H83: =H59+H82 -> 265,222.2 | I83: 113.1 | J83: 30,720.2 | K83: =K59+K82 ->  | L83: =K83/H83*100 ->  | M83: =M59+M82 ->  | N83: =M83/K83*100 -> 
B84: БЮДЖЕТ (всього з освітньою субвенцією) | D84: =D83+D60 -> 311824.6 | E84: 0.0 | F84: 0.0 | G84: =E84/C84*100 ->  | H84: 0.0 | J84: 0.0
A85: 41033900 | B85: Освітня субвенція | C85: 56,575.9 | D85: 63,129.3 | E85: 63,129.3 | F85: 100.0 | G85: =E85/C85*100 -> 111.6 | H85: 77,808.10 | I85: 123.3 | J85: 14,678.80 | K85: 67,251.8 | M85: 72,295.7
A86: 41034200 | B86: Медична субвенція | C86: 51,101.9 | D86: 48,909.3 | E86: 48,909.3 | F86: 100.0 | G86: =E86/C86*100 -> 95.7 | H86: 40,687.90 | I86: 83.2 | J86: -8,221.40 | K86: 55,971.5 | M86: 60,169.4
B87: Соціальні субвенції загального фонду | C87: 116,783.90 | D87: 119,549.4 | E87: 119,549.4 | F87: 100.0 | G87: 109.8 | H87: 0.00 | I87: 0.0 | J87: -119,549.40
B88: Субвенції спеціального фонду | C88: 5,185.20 | D88: 7,121.60 | E88: 121.60 | F88: 1.7 | G88: 109.8 | H88: 0.00 | I88: 0.0 | J88: -121.60
A89: 41300000 | B89: Всього субвенцій | C89: =C85+C86+C87+C88 -> 229,646.9 | D89: =D85+D86+D87+D88 -> 238,709.6 | E89: 238,709.6 | F89: 100.0 | G89: 109.8 | H89: =H85+H86 -> 118,496.00 | I89: 49.6 | J89: -120,213.60
A90: 41000000 | B90: Офіційні трансферти | C90: =C89 -> 229,646.9 | D90: =D89 -> 238,709.6 | E90: =E89 -> 238,709.6 | F90: 100.0 | G90: 109.8 | H90: =H85+H86 -> 118,496.00 | I90: 49.6 | J90: -120,213.60 | K90: =K85+K86 -> 123,223.3 | M90: =M85+M86 -> 132,465.1
B91: Загальний фонд з трансфертами | C91: =C59+C85+C86+C87 -> 424,023.6 | D91: =D59+D85+D86+D87 -> 464,664.0 | E91: =E59+E85+E86+E87 -> 453,016.7 | F91: 97.5 | G91: 109.8 | H91: =H59+H85+H86+H87 -> 371,846.00 | I91: 82.1 | J91: -81,170.70
B92: Разом бюджет | C92: =C83+C90 -> 441,230.0 | D92: =D83+D90 -> 488,350.9 | E92: =E83+E90 -> 473,211.6 | F92: 96.9 | G92: 134.3 | H92: =H83+H90 -> 383,718.231 | I92: 81.1 | J92: -89,493.37 | K92: =K83+K90 ->  | L92: =K92/H92*100 ->  | M92: =M83+M90 ->  | N92: =M92/K92*100 -> 
B93: Довідково. Разом бюджет (без соціальних субвенцій та субвенції на інвестиційні проекти) | C93: =C83+C85+C86 -> 319,260.9 | D93: =D83+D85+D86 -> 361,679.9 | E93: =E83+E85+E86 -> 346,540.6 | F93: 95.8 | G93: 112.5 | H93: =H92 -> 383,718.231 | I93: 110.7 | J93: 37,177.63
B96: Голова комісії | H96: О.В.Ціпуленко
B99: Секретар комісії | H99: Л.П.Маніта
